fUSD/lending_fUSD_20240608
["ID","MTS","AMOUNT","RATE_DAILY","PERIOD"]
[328852857,1717887042819,-152.157399,0.00014,2]
[328852858,1717887042829,-175.95,0.00014066,2]
[328852859,1717887042839,-3384.41,0.00014656,2]
[328852860,1717887042849,-524.9,0.00014798,2]
[328852861,1717887042860,-1500.0,0.000148,5]
[328852862,1717887042870,-1761.1501,0.000149,2]
[328852863,1717887042881,-200.03822336,0.000149,2]
[328852864,1717887042892,-300.0,0.000149,5]
[328852865,1717887042902,-1016.7250811,0.000149,2]
[328852866,1717887042913,-207.0170196,0.0001499,2]
[328852867,1717887042926,-207.7636247,0.0001499,2]
[328852868,1717887042937,-208.5102299,0.0001499,2]
[328852869,1717887042948,-1007.8040424,0.0001499,2]
[328852870,1717887042959,-1011.4386793,0.0001499,2]
[328852871,1717887042970,-1015.0733162,0.0001499,2]
[328852872,1717887042980,-2565.3332502,0.0001499,2]
[328852873,1717887042991,-2584.0771038,0.0001499,2]
[328852874,1717887043155,-2602.8209575,0.0001499,2]
[328852875,1717887043166,-256.23022446,0.0001499,2]
[328852876,1717887043176,-152.02,0.0001499,2]
[328852877,1717887043185,-791.69852173,0.00014998,2]
[328852880,1717887043196,-3617.40503477,0.00014998,2]
[328852883,1717887043206,-2633.57399339,0.00014998,2]
[328852887,1717887043219,-2006.60849381,0.00014998,2]
[328852890,1717887043230,-824.50033056,0.00014998,2]
[328852893,1717887043240,-2882.29544155,0.00014998,2]
[328852896,1717887043251,-151.0,0.00014998,2]
[328852899,1717887043261,-1074.61897376,0.00014999,5]
[328852902,1717887043271,-418639.46616621,0.00015,2]
[328852905,1717887043285,-143533.17594136,0.00015,2]
[328852906,1717887043298,-50473.25741902,0.00015,2]
[328852907,1717887043310,-611.24385819,0.00015,2]
[328852908,1717887043321,-958.94354859,0.00015,2]
[328852909,1717887043334,-3762.41856736,0.00015,2]
[328852910,1717887043345,-1763.37108582,0.00015,2]
[328852925,1717887043562,-2318.88957874,0.00015,2]
[328852927,1717887043574,-1392.92241293,0.00015,2]
[328852929,1717887043586,-1026.68368719,0.00015,2]
[328852931,1717887043599,-25189.08888552,0.00015,2]
[328852939,1717887043666,-1117.28227103,0.00015,2]
[328852941,1717887043678,-910.0,0.00015,2]
[328852944,1717887043690,-484.30050699,0.00015,2]
[328852946,1717887043703,-18102.71142811,0.00015,2]
[328852948,1717887043714,-720.98865545,0.00015,2]
[328852950,1717887043726,-536.28001313,0.00015,2]
[328852957,1717887043788,-302.23,0.00015,2]
[328852959,1717887043801,-300.1,0.00015,2]
[328852962,1717887043813,-301.132,0.00015,2]
[328852964,1717887043825,-274.264,0.00015,2]
[328852966,1717887043838,-309.865,0.00015,2]
[328852968,1717887043850,-394.60285247,0.00015,2]
[328852970,1717887043862,-16282.94550113,0.00015,2]
[328852973,1717887043874,-20902.53831334,0.00015,2]
[328852975,1717887043885,-460.6,0.00015,2]
[328853028,1717887046443,-2353.38979589,0.00015,2]
[328853029,1717887046467,-9317.29127418,0.00015,2]
[328853030,1717887046480,-15864.25239601,0.00015,2]
[328853031,1717887046491,-1342.74359843,0.00015,2]
[328853032,1717887046503,-806.9626216,0.00015,2]
[328853053,1717887990794,-345.62576659,0.00012582,2]
[328853054,1717887990819,-500.0,0.00012583,2]
[328853055,1717887990843,-154.37423341,0.00012583,2]
[328853056,1717888035116,-155.0,0.00012583,2]
[328853057,1717888143558,-155.0,0.00012581,2]
[328853058,1717888149177,-210.40926693,0.00012581,2]
[328853059,1717888149201,-2770.10573307,0.00012582,2]
[328853060,1717888161116,-615.66386395,0.00012582,2]
[328853061,1717888161140,-150.0,0.00012582,2]
[328853062,1717888161164,-150.0,0.00012582,2]
[328853063,1717888161187,-21433.71262829,0.00012583,2]
[328853064,1717888161210,-18650.38950776,0.00012583,2]
[328853071,1717888232521,-365.40926693,0.00012582,2]
[328853072,1717888232532,-1124.26560931,0.00012583,2]
[328853073,1717888232542,-156.90145985,0.00012584,2]
[328853074,1717888232552,-156.90145973,0.00012729,2]
[328853075,1717888232562,-156.90145973,0.00012874,2]
[328853076,1717888232572,-156.90145973,0.00013018,2]
[328853077,1717888232582,-560.77,0.00013035,2]
[328853078,1717888232592,-156.90145973,0.00013163,2]
[328853079,1717888232601,-250.0,0.00013277,2]
[328853080,1717888232611,-1305.79050433,0.00013277,2]
[328853081,1717888232623,-707.08,0.00013277,2]
[328853082,1717888232958,-0.07475664,0.00013277,2]
[328853083,1717888232971,-1128.07473903,0.00013277,2]
[328853084,1717888232981,-156.90145973,0.00013308,2]
[328853085,1717888232991,-376.20978684,0.00013308,2]
[328853086,1717888233003,-356.23021316,0.00013308,2]
[328853087,1717888233014,-499.99,0.00013308,2]
[328853088,1717888233023,-1211.85,0.00013308,2]
[328853089,1717888233033,-150.0,0.00013346,2]
[328853090,1717888233043,-156.90145973,0.00013453,2]
[328853091,1717888233054,-156.90145973,0.00013597,2]
[328853092,1717888233064,-82.89907344,0.0001361,2]
[328853093,1717888233076,-5837.96354366,0.0001361,2]
[328853094,1717888233088,-5336.33133191,0.0001361,2]
[328853095,1717888233100,-2543.10605099,0.0001361,2]
[328853096,1717888233110,-3141.08,0.00013699,2]
[328853097,1717888233120,-156.90145973,0.00013742,2]
[328853098,1717888233130,-521.52,0.00013822,2]
[328853099,1717888233141,-210.0,0.0001384,2]
[328853100,1717888233152,-210.0,0.0001384,2]
[328853101,1717888233161,-156.90145973,0.00013887,2]
[328853102,1717888233171,-156.90145973,0.00014032,2]
[328853103,1717888233182,-156.90145973,0.00014176,2]
[328853104,1717888233192,-156.90145973,0.00014321,2]
[328853105,1717888233202,-3141.08,0.00014384,2]
[328853106,1717888233211,-156.90145973,0.00014466,2]
[328853107,1717888233221,-156.90145973,0.00014611,2]
[328853109,1717888233231,-382.67943994,0.00014636,2]
[328853110,1717888233241,-203.72694672,0.00014636,2]
[328853112,1717888233252,-494.9226198,0.00014636,2]
[328853114,1717888233262,-405.46987801,0.00014637,2]
[328853116,1717888233273,-23900.0,0.00014638,2]
[328853118,1717888233283,-1000.0,0.00014734,2]
[328853120,1717888233294,-156.90145973,0.00014755,2]
[328853122,1717888233304,-4947.97,0.00014777,2]
[328853124,1717888233314,-500.0,0.0001488,2]
[328853126,1717888233324,-200.0,0.0001488,2]
[328853127,1717888233334,-1274.88962181,0.0001488,2]
[328853128,1717888233347,-6024.99599901,0.0001488,2]
[328853129,1717888233359,-999.43281783,0.0001488,2]
[328853130,1717888233397,-458.66396705,0.0001488,2]
[328853131,1717888233409,-1661.5775943,0.0001488,2]
[328853132,1717888233419,-334.55351774,0.000149,2]
[328853133,1717888233430,-1927.4612,0.000149,2]
[328853134,1717888233440,-5212.85986922,0.000149,2]
[328853135,1717888233450,-1000.0,0.000149,2]
[328853136,1717888233460,-824.9585,0.000149,2]
[328853137,1717888233470,-211.4781,0.000149,2]
[328853138,1717888233480,-242.8145798,0.000149,2]
[328853139,1717888233490,-509.8295623,0.000149,2]
[328853140,1717888233500,-1000.0,0.000149,2]
[328853141,1717888233509,-156.90145973,0.000149,2]
[328853142,1717888233519,-2500.0,0.000149,2]
[328853143,1717888233529,-100000.0,0.000149,2]
[328853144,1717888233550,-229.98373696,0.000149,2]
[328853145,1717888233567,-853.8866481,0.00014988,2]
[328853146,1717888233577,-209.2568353,0.00014988,2]
[328853147,1717888233590,-755.0168398,0.0001499,2]
[328853148,1717888233600,-656.1470315,0.0001499,2]
[328853149,1717888233610,-152.1,0.0001499,2]
[328853150,1717888233622,-1901.16364484,0.00014998,2]
[328853151,1717888233634,-371.17431484,0.00014998,2]
[328853152,1717888233648,-274.82057172,0.00014998,2]
[328853153,1717888233658,-2427.45764851,0.00014998,2]
[328853154,1717888233669,-1486.25397523,0.00014998,2]
[328853155,1717888233680,-283.84331334,0.00014998,2]
[328853156,1717888233690,-155.0,0.00014998,2]
[328853157,1717888233703,-4089.45045617,0.00014998,2]
[328853158,1717888233715,-653.42231097,0.00014998,2]
[328853159,1717888233725,-2894.48202305,0.00014999,2]
[328853160,1717888233737,-462.26891752,0.00014999,2]
[328853161,1717888233748,-354.46847898,0.00014999,2]
[328853162,1717888233759,-250249.37628864,0.00015,2]
[328853163,1717888233772,-307.62375968,0.00015,2]
[328853200,1717888239353,-0.01492272,0.000148,2]
[328853201,1717888239426,-785.92464769,0.000148,2]
[328853204,1717888239440,-669.42707453,0.000148,2]
[328853206,1717888239454,-1044.63335506,0.000148,2]
[328853208,1717888239464,-5509.387865,0.00015,2]
[328853210,1717888239476,-27061.14939622,0.00015,2]
[328853283,1717888243833,-14007.20132762,0.00015,2]
[328853284,1717888243845,-50504.41127318,0.00015,2]
[328853285,1717888243857,-32100.10666608,0.00015,2]
[328853286,1717888243869,-48601.23040868,0.00015,2]
[328853288,1717888243881,-2515.45730436,0.00015,2]
[328853289,1717888243892,-1122.1164,0.00015,2]
[328853290,1717888243904,-951.16499719,0.00015,2]
[328853291,1717888244035,-689.99174,0.00015,2]
[328853292,1717888244339,-4650.0,0.00015,2]
[328853295,1717888244352,-83357.24203639,0.00015,2]
[328853305,1717888246575,-9477.95940437,0.00012583,2]
[328853306,1717888246586,-137009.19459067,0.00015,2]
[328853307,1717888246599,-33811.53524856,0.00015,2]
[328853313,1717888574393,-689.99174,0.00012477,2]
[328853314,1717888767048,-155.0,0.0001248,2]
[328853315,1717889026484,-268.60222202,0.00011957,2]
[328853316,1717889254154,-1489.78467668,0.00011953,2]
[328853317,1717889254178,-365.40926693,0.00011954,2]
[328853318,1717889254201,-155.59394757,0.00011958,2]
[328853319,1717889254225,-532.73,0.00012058,2]
[328853320,1717889254249,-458.8334922,0.00012478,2]
[328853321,1717889254273,-271.0898094,0.00012482,2]
[328853322,1717889348126,-789.1418906,0.00012482,2]
[328853323,1717889355300,2351.12266983,0.00012481,2]
[328853330,1717889433170,-365.40926693,0.00012693,2]
[328853331,1717889433181,-155.59394757,0.00012694,2]
[328853332,1717889433191,-469.111992,0.00013361,2]
[328853333,1717889433202,-155.59394757,0.00013429,2]
[328853334,1717889433212,-300.0,0.00013503,2]
[328853335,1717889433222,-150.0,0.00013503,2]
[328853336,1717889433233,-799.05585964,0.00013503,2]
[328853337,1717889433243,-4485.96,0.00013504,2]
[328853338,1717889433253,-177.57498629,0.00013504,2]
[328853339,1717889433266,-91.02723573,0.00013504,2]
[328853340,1717889433278,-499.99,0.00013504,2]
[328853341,1717889433287,-1408.98276427,0.00013505,2]
[328853342,1717889433299,-562.4996314,0.00013505,2]
[328853343,1717889433621,-302.27594415,0.00013505,2]
[328853344,1717889433634,-1120.97999995,0.00013505,2]
[328853345,1717889433646,-1765.98400049,0.00013505,2]
[328853346,1717889433879,-2494.84913789,0.00013505,2]
[328853347,1717889433891,-664.57727663,0.00013505,2]
[328853348,1717889433903,-601.41403316,0.00013505,2]
[328853349,1717889433915,-1317.06365256,0.00013505,2]
[328853350,1717889433927,-270.43870298,0.00013505,2]
[328853351,1717889433939,-382.31751455,0.00013505,2]
[328853382,1717889439541,-13008.61734197,0.00013505,2]
[328853383,1717889439551,-250.0,0.00013545,2]
[328853384,1717889439563,-1000.0,0.00013575,2]
[328853385,1717889439574,-263.25,0.00013579,2]
[328853386,1717889439586,-166.26,0.00013598,2]
[328853387,1717889439597,-330.71,0.00013598,2]
[328853388,1717889439608,-3297.97,0.0001362,2]
[328853389,1717889439619,-260.76,0.00013699,2]
[328853390,1717889439630,-1884.64,0.00013699,2]
[328853391,1717889439641,-155.59394757,0.00014165,2]
[328853392,1717889439652,-1000.0,0.00014245,2]
[328853393,1717889439662,-2539.92,0.00014247,2]
[328853394,1717889439672,-175.95,0.00014321,2]
[328853395,1717889439684,-532.73,0.00014322,2]
[328853396,1717889439695,-1884.64,0.00014384,2]
[328853397,1717889439706,-3385.76959702,0.00014534,2]
[328853398,1717889439717,-243.14,0.00014534,2]
[328853399,1717889439727,-400.0,0.000147,5]
[328853400,1717889439737,-6705.48063479,0.000148,2]
[328853437,1717889444684,-141.34993386,0.00014799,2]
[328853444,1717889447575,-13.65006614,0.00014799,2]
[328853445,1717889447586,-423.0513379,0.000148,2]
[328853446,1717889645476,-1529.81816202,0.000118,2]
[328853447,1717889669147,3484.70020844,0.00025,30]
[328853449,1717889760305,151.0,0.00024888,30]
[328853453,1717889919524,-155.0,0.0001159,2]
[328853454,1717889919549,-411.19456329,0.00011591,2]
[328853455,1717889919574,-154.40484071,0.00011591,2]
[328853456,1717889998739,11323.74,0.00028,90]
[328853457,1717890063676,208.14773746,0.00010999,2]
[328853458,1717890096796,155.0,0.00010999,2]
[328853459,1717890173399,8919.98256398,0.00010999,2]
[328853460,1717890230036,365.40926693,0.00010999,2]
[328853461,1717890251556,411.19456329,0.00010999,2]
[328853462,1717890397446,-150.0,0.00011,2]
[328853463,1717890429129,-5.0,0.00011,2]
[328853464,1717890429153,-662.21,0.00011001,2]
[328853465,1717890429176,-120.48321788,0.000117,2]
[328853466,1717890432231,-215.10652378,0.000116,2]
[328853467,1717890432256,-35.11072969,0.000117,2]
[328853468,1717890432287,-889.21458453,0.000118,2]
[328853470,1717890465097,-150.0,0.00011799,2]
[328853471,1717890507699,-215.40926693,0.00011799,2]
[328853472,1717890507724,-396.13501407,0.000118,2]
[328853473,1717890535565,641.68,0.0001093,2]
[328853474,1717890545086,-180.43440108,0.000118,2]
[328853475,1717890551116,-3637.56738093,0.000118,2]
[328853476,1717890551138,-156.47869621,0.00012051,2]
[328853477,1717890568106,-1795.39402106,0.00012692,2]
[328853478,1717890568130,-155.0,0.00012693,2]
[328853479,1717890568153,-302.0,0.00012693,2]
[328853480,1717890568178,-365.40926693,0.00012693,2]
[328853481,1717890568202,-300.0,0.00012694,2]
[328853482,1717890568225,-150.0,0.00012694,2]
[328853483,1717890568249,-269.50781113,0.00012694,2]
[328853484,1717890568275,-3151.8604394,0.00012694,2]
[328853485,1717890568300,-23900.0,0.00012695,2]
[328853486,1717890568326,-250.0,0.00012712,2]
[328853487,1717890568350,-150.0,0.00012795,2]
[328853488,1717890568375,-499.99,0.00012795,2]
[328853489,1717890568399,-358.98,0.00012795,2]
[328853490,1717890568427,-250.0,0.00012818,2]
[328853491,1717890568453,-166.26,0.00012818,2]
[328853492,1717890568476,-1395.45,0.00012823,2]
[328853493,1717890568502,-321.88,0.00012823,2]
[328853494,1717890568524,-5006.98,0.00012848,2]
[328853495,1717890568559,-800.0,0.00012849,2]
[328853496,1717890568585,-150.0,0.0001286,2]
[328853497,1717890568609,-13967.59,0.00012888,2]
[328853498,1717890568634,-500.0,0.00012888,2]
[328853499,1717890568659,-226.5,0.00012889,2]
[328853500,1717890568685,-187.19,0.0001293,2]
[328853501,1717890568710,-153.96,0.00012956,2]
[328853502,1717890568735,-153.96,0.00013181,2]
[328853503,1717890568760,-641.68,0.00013194,2]
[328853504,1717890568784,-198.27,0.00013357,2]
[328853505,1717890568809,-198.27,0.0001336,2]
[328853506,1717890568832,-198.27,0.00013364,2]
[328853507,1717890568857,-198.27,0.00013367,2]
[328853508,1717890568884,-198.27,0.00013371,2]
[328853509,1717890568911,-198.27,0.00013374,2]
[328853510,1717890568935,-198.27,0.00013378,2]
[328853511,1717890568959,-198.27,0.00013381,2]
[328853512,1717890568982,-198.27,0.00013385,2]
[328853513,1717890569008,-198.27,0.00013388,2]
[328853514,1717890569030,-335.44197704,0.0001339,2]
[328853515,1717890569052,-155.73251024,0.0001339,2]
[328853516,1717890569075,-486.04300105,0.0001339,2]
[328853517,1717890569101,-198.27,0.00013392,2]
[328853518,1717890569127,-198.27,0.00013395,2]
[328853519,1717890569153,-198.27,0.00013399,2]
[328853520,1717890569180,-198.27,0.00013402,2]
[328853521,1717890569204,-107.54017261,0.00013406,2]
[328853522,1717890606208,3900.57264421,0.00012595,2]
[328853524,1717890632350,-2999.39625018,0.00012595,2]
[328853526,1717890632362,-299.6900001,0.00012595,2]
[328853527,1717890632375,-2267.49339427,0.00012595,2]
[328853529,1717890632388,-2276.02471124,0.00012595,2]
[328853531,1717890632398,-365.40926693,0.00012693,2]
[328853533,1717890632410,-46.41982739,0.00013406,2]
[328853535,1717890632420,-198.27,0.00013406,2]
[328853537,1717890632430,-198.27,0.00013409,2]
[328853539,1717890632440,-198.27,0.00013413,2]
[328853541,1717890632450,-198.27,0.00013416,2]
[328853543,1717890632460,-198.27,0.0001342,2]
[328853544,1717890632470,-198.27,0.00013423,2]
[328853545,1717890632481,-5800.0,0.00013495,2]
[328853546,1717890632491,-166.01,0.00013583,2]
[328853547,1717890632501,-153.96,0.00013631,2]
[328853548,1717890632512,-389.77,0.00013699,2]
[328853549,1717890632526,-2751.0,0.00013699,2]
[328853550,1717890632537,-1090.41,0.00013699,2]
[328853551,1717890632547,-200.0,0.00013699,2]
[328853552,1717890632557,-500.0,0.00013699,2]
[328853553,1717890632567,-210.0,0.00013964,2]
[328853554,1717890632578,-367.46104775,0.00014048,2]
[328853555,1717890632588,-733.18794817,0.00014058,2]
[328853556,1717890632599,-334.61391702,0.00014384,2]
[328853557,1717890632872,-55.15608298,0.00014384,2]
[328853558,1717890632883,-800.0,0.00014455,2]
[328853559,1717890632895,-200.0,0.00014577,2]
[328853560,1717890632905,-3410.83495267,0.00014598,2]
[328853561,1717890632919,-700.69963615,0.00014598,2]
[328853562,1717890632931,-306.20467746,0.00014598,2]
[328853563,1717890632949,-551.24148495,0.00014598,2]
[328853564,1717890632961,-2209.49454877,0.00014598,2]
[328853565,1717890632973,-700.0,0.000146,5]
[328853566,1717890632983,-791.94492,0.0001465,2]
[328853567,1717890632993,-150.0,0.00014652,2]
[328853568,1717890633003,-150.53471,0.00014652,2]
[328853569,1717890633013,-791.94493,0.0001469,2]
[328853570,1717890633023,-333.87761899,0.00014696,2]
[328853571,1717890633034,-1529.81816202,0.00014696,2]
[328853572,1717890633044,-171.28541022,0.00014697,2]
[328853573,1717890633057,-63.41573206,0.00014697,2]
[328853574,1717890633067,-155.0,0.00014698,2]
[328853575,1717890633077,-155.24195711,0.00014698,2]
[328853576,1717890633087,-236.1339612,0.00014698,2]
[328853577,1717890633099,-364.23895739,0.00014698,2]
[328853578,1717890633110,-377.9482928,0.00014698,2]
[328853579,1717890633120,-234.24959519,0.00014698,2]
[328853580,1717890633133,-242.98912964,0.00014698,2]
[328853581,1717890633144,-229.72573414,0.00014698,2]
[328853582,1717890633154,-1068.82325335,0.00014698,2]
[328853583,1717890633163,-973.64026678,0.00014698,2]
[328853584,1717890633173,-157.14302958,0.00014698,2]
[328853585,1717890633183,-181.12479512,0.00014698,2]
[328853586,1717890633194,-155.0,0.00014698,2]
[328853587,1717890633203,-742.55272188,0.00014698,2]
[328853588,1717890633213,-718.67510096,0.00014698,2]
[328853589,1717890633226,-1647.99993646,0.00014698,2]
[328853590,1717890633236,-250.12031156,0.00014698,2]
[328853591,1717890633246,-1388.61702236,0.00014698,2]
[328853592,1717890633257,-156.14040432,0.00014698,2]
[328853593,1717890633269,-4573.024,0.00014698,2]
[328853594,1717890633279,-2480.25747293,0.00014698,2]
[328853595,1717890633290,-302.25560307,0.00014698,2]
[328853596,1717890633301,-155.40824956,0.00014698,2]
[328853597,1717890633312,-407.04296718,0.00014698,2]
[328853598,1717890633323,-163.69880593,0.00014698,2]
[328853599,1717890633333,-785.08586126,0.00014698,2]
[328853600,1717890633343,-155.0,0.00014698,2]
[328853601,1717890633353,-6764.48938533,0.00014698,2]
[328853602,1717890633363,-1065.50723341,0.00014698,2]
[328853603,1717890633373,-1264.47409993,0.00014698,2]
[328853604,1717890633386,-721.78736462,0.00014698,2]
[328853605,1717890633399,-2229.90220941,0.00014698,2]
[328853606,1717890633408,-306.92224248,0.00014698,2]
[328853607,1717890633418,-168.64898794,0.00014698,2]
[328853608,1717890633428,-155.33073223,0.00014698,2]
[328853609,1717890633438,-156.01992126,0.00014698,2]
[328853610,1717890633447,-201.48986089,0.00014698,2]
[328853611,1717890633457,-155.0,0.00014698,2]
[328853612,1717890633467,-105.94328457,0.00014699,2]
[328853613,1717890633479,-289.39426598,0.00014699,2]
[328853614,1717890633491,-1417.60141482,0.00014699,2]
[328853615,1717890633501,-1500.0,0.000147,5]
[328853616,1717890633513,-728.77858518,0.0001477,2]
[328853617,1717890633528,-63.16633482,0.0001477,2]
[328853618,1717890633538,-3542.3376463,0.00014788,2]
[328853619,1717890633549,-389.27393017,0.00014798,2]
[328853620,1717890633559,-282.54791112,0.00014798,2]
[328853621,1717890633569,-532.97471611,0.00014799,2]
[328853622,1717890633579,-266.94315556,0.00014799,2]
[328853623,1717890633589,-610.8421,0.000148,2]
[328853624,1717890633600,-446.10086703,0.000148,2]
[328853625,1717890633611,-791.94492,0.000148,2]
[328853626,1717890633628,-2299.5947,0.000148,2]
[328853627,1717890633643,-344.83424418,0.000148,2]
[328853628,1717890633653,-2200.0,0.000148,5]
[328853629,1717890633663,-791.94492,0.0001485,2]
[328853630,1717890633674,-500.0,0.0001488,2]
[328853631,1717890633687,-200.0,0.0001488,2]
[328853632,1717890633701,-1913.382886,0.000149,2]
[328853633,1717890633713,-500.0,0.000149,2]
[328853634,1717890633724,-479.56270335,0.000149,2]
[328853635,1717890633735,-245000.0,0.000149,2]
[328853636,1717890633747,-62875.41864539,0.000149,2]
[328853637,1717890633761,-1076.81030007,0.000149,2]
[328853638,1717890633816,-1794.60705701,0.000149,2]
[328853639,1717890633829,-3197.05711625,0.000149,2]
[328853640,1717890633841,-389.84087267,0.000149,2]
[328853641,1717890633853,-472.14322502,0.000149,2]
[328853642,1717890633888,-679.0,0.000149,2]
[328853643,1717890633902,-3415.57845701,0.000149,2]
[328853644,1717890633915,-341.31861389,0.000149,2]
[328853645,1717890633926,-711.72882134,0.000149,2]
[328853646,1717890633938,-896.40832532,0.000149,2]
[328853647,1717890633949,-11415.08106482,0.000149,2]
[328853649,1717890638862,-1599.77159946,0.000149,2]
[328853650,1717890638875,-726.22550044,0.000149,2]
[328853651,1717890638887,-597.84011983,0.000149,2]
[328853652,1717890638900,-3912.81499996,0.000149,2]
[328853653,1717890638913,-3730.36434643,0.000149,2]
[328853654,1717890638925,-2167.99093509,0.000149,2]
[328853655,1717890638936,-6281.00906491,0.000149,2]
[328853656,1717890638949,-2212.16653691,0.000149,2]
[328853657,1717890638962,-2801.27030832,0.000149,2]
[328853658,1717890638976,-5751.86552343,0.000149,2]
[328853659,1717890639343,-4962.52051354,0.000149,2]
[328853662,1717890639356,-481.58359083,0.000149,2]
[328853787,1717890644146,-155.59394756,0.00012593,2]
[328853788,1717890644157,-307.28235076,0.00014899,2]
[328853789,1717890644167,-1142.47550544,0.000149,2]
[328853790,1717890644180,-1545.10742761,0.000149,2]
[328853791,1717890644192,-451.5,0.000149,2]
[328853792,1717890644204,-2110.44129949,0.000149,2]
[328853793,1717890644861,-316.6913999,0.000149,2]
[328853794,1717890645352,-11240.27032962,0.000149,2]
[328853795,1717890645362,-8828.94716032,0.000149,2]
[328853796,1717890645372,-7500.0,0.000149,2]
[328853797,1717890645382,-1631.74997476,0.000149,2]
[328853798,1717890645391,-3000.0,0.000149,5]
[328853799,1717890645401,-162.79065026,0.000149,2]
[328853800,1717890645411,-791.94493,0.0001492,2]
[328853801,1717890645421,-1000.0,0.00014925,2]
[328853802,1717890645430,-1000.0,0.00014925,2]
[328853803,1717890645440,-1000.0,0.00014925,2]
[328853804,1717890645449,-1000.0,0.00014925,2]
[328853805,1717890645459,-1000.0,0.00014925,2]
[328853806,1717890645468,-1000.0,0.00014925,2]
[328853807,1717890645478,-1000.0,0.00014925,2]
[328853808,1717890645487,-1000.0,0.00014925,2]
[328853809,1717890645497,-1000.0,0.00014925,2]
[328853810,1717890645506,-1000.0,0.00014925,2]
[328853811,1717890645518,-1000.0,0.00014925,2]
[328853812,1717890645529,-1000.0,0.00014925,2]
[328853813,1717890645539,-1000.0,0.00014925,2]
[328853814,1717890645549,-1000.0,0.00014925,2]
[328853815,1717890645558,-1000.0,0.00014925,2]
[328853816,1717890645569,-1000.0,0.00014925,2]
[328853817,1717890645580,-1000.0,0.00014925,2]
[328853818,1717890645590,-1000.0,0.00014925,2]
[328853819,1717890645604,-1000.0,0.00014925,2]
[328853820,1717890645613,-1000.0,0.00014925,2]
[328853821,1717890645623,-1000.0,0.00014925,2]
[328853822,1717890645632,-1000.0,0.00014925,2]
[328853823,1717890645641,-1000.0,0.00014925,2]
[328853824,1717890645652,-1000.0,0.00014925,2]
[328853825,1717890645662,-1000.0,0.00014925,2]
[328853826,1717890645671,-1000.0,0.00014925,2]
[328853827,1717890645682,-1000.0,0.00014925,2]
[328853828,1717890645692,-1000.0,0.00014925,2]
[328853829,1717890645702,-207.3151,0.00014925,2]
[328853830,1717890645711,-500.0,0.00014925,2]
[328853831,1717890645721,-500.0,0.00014925,2]
[328853832,1717890645730,-500.0,0.00014925,2]
[328853833,1717890645740,-500.0,0.00014925,2]
[328853835,1717890645879,-524.5073,0.00014925,2]
[328853836,1717890645899,-1087.79771715,0.0001496,2]
[328853837,1717890645909,-19349.024113,0.00014988,2]
[328853838,1717890645919,-229.2037075,0.00014988,2]
[328853839,1717890645929,-17116.4655886,0.0001499,2]
[328853840,1717890645939,-4845.0476137,0.0001499,2]
[328853841,1717890645949,-6147.7575812,0.0001499,2]
[328853842,1717890645960,-229.2037075,0.0001499,2]
[328853843,1717890645972,-317.83071982,0.0001499,2]
[328853844,1717890645983,-317.83071982,0.0001499,2]
[328853845,1717890645993,-152.15,0.0001499,2]
[328853846,1717890646004,-3121.66503706,0.00014998,2]
[328853847,1717890646014,-528.31814333,0.00014998,2]
[328853848,1717890646024,-2670.35474481,0.00014999,2]
[328853849,1717890646034,-158.25744131,0.00014999,2]
[328853850,1717890646043,-751.47317544,0.00014999,2]
[328853851,1717890646052,-1476917.26799946,0.00015,2]
[328853852,1717890646061,-299.52170479,0.00015,2]
[328853853,1717890646071,-180.55500862,0.00015,2]
[328853854,1717890646080,-347.51456549,0.00015,2]
[328853855,1717890646090,-254.60930081,0.00015,2]
[328853856,1717890646101,-155.0,0.00015,2]
[328853857,1717890646111,-262.52303666,0.00015,2]
[328853858,1717890646122,-744.77764368,0.00015,2]
[328853859,1717890646132,-155.0,0.00015,2]